bitfinex-derivatives/quotes_ETHF0:USTF0_20260112
["timestamp","ask_amount","ask_price","bid_price","bid_amount"]
[1768203813903,0.95977762,3144.8,3143.9,1.4783732]
[1768203814096,1.21466912,3144.8,3143.5,1.5043723]
[1768203814300,0.97992402,3144.7,3143.5,1.5043723]
[1768203814606,1.21693347,3144.8,3143.5,1.5043723]
[1768203815009,0.00226435,3144.8,3143.6,1.21466912]
[1768203815210,0.00226435,3144.8,3143.5,1.5043723]
[1768203815409,0.00226435,3144.8,3143.6,1.21466912]
[1768203817603,0.00226435,3144.8,3143.6,2.71904142]
[1768203817802,0.00226435,3144.8,3143.7,1.5043723]
[1768203819409,0.00226435,3144.8,3143.7,2.71904142]
[1768203820013,0.00226435,3144.8,3143.9,1.21466912]
[1768203821019,0.00226435,3144.8,3143.9,2.71904142]
[1768203822719,0.00226435,3144.8,3143.9,1.5043723]
[1768203826618,0.00226435,3144.8,3143.9,2.71904142]
[1768203827919,6.77938695,3145.7,3142.7,3.18621297]
[1768203827920,2.27238695,3145.7,3144.2,1.5043723]
[1768203828120,1.21466912,3145.4,3144.2,1.5043723]
[1768203828319,1.21466912,3145.2,3144.2,1.5043723]
[1768203828519,1.474547,3145.1,3144.2,1.5043723]
[1768203828727,0.97666924,3145.0,3144.2,1.5043723]
[1768203829026,0.97666924,3144.9,3144.2,1.5043723]
[1768203833125,2.27238695,3145.7,3144.7,1.21466912]
[1768203833325,2.27238695,3146.2,3145.2,1.5043723]
[1768203833520,0.49778434,3146.1,3145.2,1.5043723]
[1768203833722,0.49778434,3146.0,3145.2,1.5043723]
[1768203833921,0.49778434,3145.9,3145.2,1.5043723]
[1768203834119,0.49498625,3145.8,3143.8,1.21466912]
[1768203834327,0.49498625,3145.7,3144.0,2.71904142]
[1768203834526,1.21466912,3145.4,3144.1,2.71904142]
[1768203834834,1.21466912,3145.7,3144.1,1.5043723]
[1768203835031,0.49525307,3145.6,3144.3,2.71904142]
[1768203835226,0.00387492,3145.9,3144.3,2.71904142]
[1768203835227,0.49525307,3145.5,3144.4,1.5043723]
[1768203835433,0.49551739,3145.4,3144.4,1.5043723]
[1768203835633,1.21466912,3145.5,3144.4,1.5043723]
[1768203835834,1.21466912,3145.3,3144.3,0.00397184]
[1768203836222,1.88009725,3145.9,3144.3,2.72301326]
[1768203836533,1.21466912,3145.6,3144.3,2.72301326]
[1768203836728,0.49551202,3145.5,3144.3,2.72301326]
[1768203839836,0.49551202,3145.5,3144.4,1.5043723]
[1768203840027,0.49551202,3145.4,3144.4,1.5043723]
[1768203841035,0.49551202,3145.3,3144.5,1.5043723]
[1768203841224,0.49551202,3145.2,3144.5,1.5043723]
[1768203841420,0.49551202,3145.1,3144.5,1.5043723]
[1768203841623,0.49551202,3145.0,3144.3,0.00397184]
[1768203841824,1.21466912,3145.3,3144.3,0.00397184]
[1768203842023,0.48750268,3145.2,3144.3,0.00397184]
[1768203842236,0.48750268,3145.1,3144.3,0.00397184]
[1768203842533,0.48750268,3145.0,3144.3,0.00397184]
[1768203842735,2.25883544,3145.7,3144.3,0.00397184]
[1768203842920,1.21466912,3145.3,3144.3,0.00397184]
[1768203843121,0.48754121,3145.2,3144.3,0.00397184]
[1768203843639,0.48754121,3145.1,3144.3,0.00397184]
[1768203843932,0.48754121,3145.0,3144.3,0.00397184]
[1768203844126,0.48754121,3144.9,3144.3,0.00397184]
[1768203844327,2.25883544,3145.3,3144.3,0.00397184]
[1768203844634,0.4875445,3145.2,3144.3,0.00397184]
[1768203844834,0.4875445,3145.1,3144.3,0.00397184]
[1768203845031,0.4875445,3145.0,3144.3,0.00397184]
[1768203845235,2.67095564,3144.9,3144.3,0.00397184]
[1768203845435,1.45628652,3144.8,3144.3,0.00397184]
[1768203845627,1.45628652,3144.7,3144.3,0.00397184]
[1768203845828,0.96874202,3144.6,3144.3,0.00397184]
[1768203846029,0.96874202,3144.5,3144.3,0.00397184]
[1768203846237,0.96874202,3144.4,3144.3,0.00397184]
[1768203846430,0.96874202,3145.0,3144.3,0.00397184]
[1768203846630,0.48494031,3144.9,3144.3,0.00397184]
[1768203846831,1.45368233,3144.8,3144.3,0.00397184]
[1768203847031,1.45368233,3144.7,3143.7,1.71902721]
[1768203847331,0.96874202,3144.6,3143.7,1.71902721]
[1768203847537,0.96874202,3144.5,3143.7,1.71902721]
[1768203847830,0.96874202,3144.4,3143.8,1.21466912]
[1768203848038,0.96874202,3144.3,3143.9,1.71902721]
[1768203848225,1.21466912,3145.1,3143.9,1.71902721]
[1768203848428,1.44400674,3145.0,3143.9,1.71902721]
[1768203848732,1.44400674,3144.9,3143.9,1.71902721]
[1768203848923,1.44400674,3144.8,3143.9,1.71902721]
[1768203849122,0.96965755,3144.7,3143.9,1.71902721]
[1768203849334,0.96965755,3144.6,3143.9,1.71902721]
[1768203849530,0.96965755,3144.5,3143.9,1.71902721]
[1768203849728,0.96965755,3144.4,3143.9,1.71902721]
[1768203849924,1.21466912,3145.1,3143.9,1.71902721]
[1768203850132,1.44388153,3145.0,3143.9,1.71902721]
[1768203850331,1.44388153,3144.9,3143.9,1.71902721]
[1768203850530,1.44388153,3144.8,3143.9,1.71902721]
[1768203850732,0.96958347,3144.7,3143.9,1.71902721]
[1768203850933,0.96958347,3144.6,3143.9,1.71902721]
[1768203851127,0.96958347,3144.5,3143.9,1.71902721]
[1768203851329,0.96958347,3144.4,3143.8,0.00312318]
[1768203851636,0.96958347,3144.3,3143.8,1.76560815]
[1768203851940,0.96960758,3144.2,3143.8,1.76560815]
[1768203852131,1.21466912,3144.9,3143.8,1.76560815]
[1768203852433,1.44391567,3144.8,3143.8,1.76560815]
[1768203852740,1.44391567,3144.7,3143.8,1.76560815]
[1768203853039,0.96961083,3144.6,3143.8,1.76560815]
[1768203853333,0.96961083,3144.5,3143.8,1.76560815]
[1768203853539,0.96961083,3144.4,3143.4,1.76248497]
[1768203853739,0.96961083,3144.3,3143.4,1.76248497]
[1768203854042,0.96961083,3144.2,3143.4,1.76248497]
[1768203854231,1.21466912,3144.8,3143.4,1.76248497]
[1768203854430,1.44391347,3144.7,3143.4,1.76248497]
[1768203854632,1.44391347,3144.6,3143.4,1.76599284]
[1768203854833,0.9696261,3144.5,3143.4,1.76599284]
[1768203855039,0.9696261,3144.4,3143.4,1.76599284]
[1768203855235,0.9696261,3144.3,3143.4,1.76599284]
[1768203855436,0.9696261,3144.2,3143.4,1.76599284]
[1768203855641,0.96955428,3144.1,3143.4,1.76599284]
[1768203855942,1.21466912,3144.6,3143.4,1.76599284]
[1768203856136,2.25883544,3144.9,3143.4,1.76599284]
[1768203856137,1.21466912,3144.4,3143.4,1.76599284]
[1768203856339,0.96956928,3144.3,3143.4,1.76599284]
[1768203856645,0.96956928,3144.2,3143.4,1.76599284]
[1768203856847,0.96956928,3144.1,3143.7,2.97715409]
[1768203857041,0.96956928,3144.0,3143.7,1.76248497]
[1768203857340,3.47350456,3144.8,3143.7,1.76248497]
[1768203857542,1.43280476,3144.7,3143.7,1.76248497]
[1768203857741,1.43280476,3144.6,3143.7,1.76248497]
[1768203857941,1.43280476,3144.5,3143.7,1.76248497]
[1768203858141,0.96928465,3144.4,3143.7,1.76248497]
[1768203858342,0.96928465,3144.3,3143.7,1.76248497]
[1768203858545,0.96928465,3144.2,3143.7,1.76248497]
[1768203858737,0.96928465,3144.1,3143.7,1.76248497]
[1768203859042,0.96928465,3144.0,3143.7,1.76248497]
[1768203859341,1.21466912,3144.6,3143.4,0.00350787]
[1768203859543,1.21466912,3144.4,3143.4,0.00350787]
[1768203859742,1.42980065,3144.3,3143.4,0.00350787]
[1768203859942,0.96900598,3144.2,3143.4,0.00350787]
[1768203860135,0.96900598,3144.1,3143.4,0.00350787]
[1768203860336,0.96900598,3144.0,3143.4,0.00350787]
[1768203860636,0.96900598,3143.9,3143.4,0.00350787]
[1768203860836,0.96900598,3143.8,3143.4,0.00350787]
[1768203861037,1.21466912,3144.4,3143.4,0.00350787]
[1768203861236,1.43066093,3144.3,3143.4,0.00350787]
[1768203861437,0.97002316,3144.2,3143.4,0.00350787]
[1768203861741,0.97002316,3144.1,3143.4,0.00350787]
[1768203861943,0.97002316,3144.0,3143.4,0.00350787]
[1768203862143,0.97002316,3143.9,3143.4,0.00350787]
[1768203862345,0.97002316,3143.8,3143.4,0.00350787]
[1768203862546,1.21466912,3144.3,3143.4,0.00350787]
[1768203862738,0.96946774,3144.2,3143.4,0.00350787]
[1768203862939,0.96946774,3144.1,3143.4,0.00350787]
[1768203863134,0.96946774,3144.0,3143.4,0.00350787]
[1768203863439,0.96946774,3143.9,3143.4,0.00350787]
[1768203863733,0.96946774,3143.8,3143.4,0.00350787]
[1768203863937,1.21466912,3144.2,3143.1,1.76248497]
[1768203864139,0.96940247,3144.1,3143.1,1.76248497]
[1768203864440,0.96940247,3144.0,3143.1,1.76248497]
[1768203864748,0.96940247,3143.9,3142.8,1.21466912]
[1768203865047,0.96940247,3143.8,3142.8,0.00384127]
[1768203865250,1.21466912,3144.0,3142.8,0.00384127]
[1768203865542,0.96902394,3143.9,3142.8,0.00384127]
[1768203865748,0.96902394,3143.8,3142.8,0.00384127]
[1768203865939,0.96902394,3143.7,3142.8,0.00384127]
[1768203866143,1.21700172,3144.4,3142.8,0.00384127]
[1768203866340,1.42914828,3144.3,3142.8,0.00384127]
[1768203866540,1.42914828,3144.2,3142.8,0.00384127]
[1768203866748,0.96898995,3144.1,3142.8,0.00384127]
[1768203866938,0.96898995,3144.0,3142.8,0.00384127]
[1768203867245,0.96898995,3143.9,3142.8,0.00384127]
[1768203867442,0.96898995,3143.8,3142.8,0.00384127]
[1768203867640,0.96898995,3143.7,3142.8,0.00384127]
[1768203867853,1.21700172,3144.4,3142.8,1.76632624]
[1768203868149,1.42871852,3144.3,3142.8,1.76632624]
[1768203868444,1.42871852,3144.2,3142.8,1.76632624]
[1768203868646,0.96869873,3144.1,3142.8,1.76632624]
[1768203868845,0.96869873,3144.0,3142.8,1.76632624]
[1768203869047,0.96869873,3143.9,3142.8,1.76632624]
[1768203869248,0.96869873,3143.8,3142.8,1.76632624]
[1768203869445,0.96869873,3143.7,3142.8,1.76632624]
[1768203869651,2.54100172,3144.4,3142.8,1.76632624]
[1768203869841,1.42851138,3144.3,3142.8,1.76632624]
[1768203870042,1.21700172,3144.0,3142.8,1.76632624]
[1768203870343,0.96855949,3143.9,3142.8,1.76632624]
[1768203870540,0.96855949,3143.8,3142.4,1.76248497]
[1768203870842,0.96855949,3143.7,3142.4,1.76248497]
[1768203871041,0.96855949,3143.6,3142.4,1.76248497]
[1768203871240,0.96855949,3143.5,3142.2,1.76248497]
[1768203871434,0.96855949,3143.4,3142.2,1.76248497]
[1768203871637,0.96855949,3143.3,3142.2,1.76580687]
[1768203871834,0.96855949,3143.2,3142.2,1.76580687]
[1768203872041,0.96855949,3143.1,3142.2,1.76580687]
[1768203872245,0.00334977,3143.4,3142.2,1.76580687]
[1768203872544,0.96786792,3143.3,3142.2,1.76580687]
[1768203872741,0.96786792,3143.2,3142.2,1.76580687]
[1768203872941,0.00334977,3143.4,3142.2,1.76580687]
[1768203873142,0.967589,3143.3,3142.2,1.76580687]
[1768203873338,0.967589,3143.2,3142.2,1.76580687]
[1768203873651,0.00334977,3143.4,3142.2,1.76580687]
[1768203873844,0.96738548,3143.3,3142.2,1.76580687]
[1768203874145,0.96738548,3143.2,3142.2,1.76580687]
[1768203874353,0.00334977,3143.4,3142.2,1.76580687]
[1768203874554,0.96556245,3143.3,3142.2,1.76580687]
[1768203874856,0.96556245,3143.2,3142.2,1.76580687]
[1768203875050,0.00334977,3143.4,3142.2,1.76580687]
[1768203875354,0.96556252,3143.3,3142.2,1.76580687]
[1768203875651,0.96556252,3143.2,3142.2,1.76580687]
[1768203875851,0.00334977,3143.4,3142.2,1.76580687]
[1768203876059,0.96540438,3143.3,3142.2,1.76580687]
[1768203876244,0.96540438,3143.2,3142.2,1.76580687]
[1768203876446,0.00334977,3143.4,3142.2,1.76580687]
[1768203876646,0.96529511,3143.3,3142.2,1.76580687]
[1768203876844,0.96529511,3143.2,3142.2,1.76580687]
[1768203877046,0.00334977,3143.4,3142.2,1.76580687]
[1768203877247,0.96529362,3143.3,3142.2,1.76580687]
[1768203877541,0.96529362,3143.2,3142.2,1.76580687]
[1768203877750,0.00334977,3143.4,3142.2,1.76580687]
[1768203877951,0.96522632,3143.3,3142.2,1.76580687]
[1768203878147,0.96522632,3143.2,3141.6,2.9963737]
[1768203878448,0.96522632,3143.1,3141.7,1.95201319]
[1768203878655,1.32734977,3143.4,3141.7,1.95201319]
[1768203878656,0.96522632,3143.0,3141.7,1.95201319]
[1768203878848,0.96522632,3142.9,3141.8,1.95201319]
[1768203879055,0.96522632,3142.8,3141.8,1.95201319]
[1768203879259,0.96522632,3142.7,3141.8,1.95585172]
[1768203879555,0.00334977,3143.4,3141.8,1.95585172]
[1768203879758,0.9644947,3143.3,3141.8,1.95585172]
[1768203879962,0.9644947,3143.2,3141.8,1.95585172]
[1768203880253,0.9644947,3143.1,3141.8,1.95585172]
[1768203880557,0.9644947,3143.0,3141.8,1.95585172]
[1768203880756,0.9644947,3142.9,3141.8,1.95585172]
[1768203881058,0.9644947,3142.8,3141.8,1.95585172]
[1768203881355,0.00334977,3143.4,3141.8,1.95585172]
[1768203881547,0.96441075,3143.3,3141.8,1.95585172]
[1768203881743,0.96441075,3143.2,3142.1,1.95201319]
[1768203881942,0.96441075,3143.1,3142.1,1.95201319]
[1768203882150,0.00334977,3143.4,3142.1,1.95201319]
[1768203882361,0.96159042,3143.3,3142.1,1.95201319]
[1768203882550,0.96159042,3143.2,3142.1,1.95201319]
[1768203882752,0.00334977,3143.4,3142.1,1.95201319]
[1768203882753,0.96159042,3143.1,3142.1,1.95201319]
[1768203882954,0.00334977,3143.4,3142.1,1.95201319]
[1768203883158,0.96166624,3143.3,3142.1,1.95201319]
[1768203883360,0.96166624,3143.2,3142.1,1.95201319]
[1768203883561,0.96166624,3143.1,3142.1,1.95201319]
[1768203883849,0.96166624,3143.0,3142.1,1.95201319]
[1768203884055,0.00334977,3143.4,3142.1,1.95201319]
[1768203884254,0.96179132,3143.3,3142.1,1.95201319]
[1768203884448,0.96179132,3143.2,3142.1,1.95201319]
[1768203884653,0.96179132,3143.1,3142.1,1.95201319]
[1768203884848,0.96179132,3143.0,3142.1,1.95201319]
[1768203885049,0.96179132,3142.9,3142.1,1.95201319]
[1768203885255,0.00334977,3143.4,3142.1,1.95201319]
[1768203885445,0.96194597,3143.3,3142.1,1.95201319]
[1768203885651,0.96194597,3143.2,3142.1,1.95201319]
[1768203885958,0.96194597,3143.1,3142.1,1.95201319]
[1768203886257,0.96194597,3143.0,3142.1,1.95201319]
[1768203886450,0.96194597,3142.9,3142.1,1.95201319]
[1768203886649,0.00334977,3143.4,3142.1,1.95201319]
[1768203887447,2.25883544,3144.7,3142.8,1.95201319]
[1768203887650,0.45927703,3144.6,3143.2,1.95201319]
[1768203887857,0.45927703,3144.5,3143.2,1.95201319]
[1768203888047,4.40300172,3145.0,3143.2,1.95201319]
[1768203888253,0.45934604,3144.9,3143.2,1.95201319]
[1768203888453,0.45934604,3144.8,3143.2,1.95201319]
[1768203888653,0.00307201,3144.9,3143.6,1.95201319]
[1768203896265,0.00307201,3144.9,3143.6,2.11126319]
[1768203900276,0.00307201,3144.9,3144.0,2.11124319]
[1768203900467,6.392,3145.9,3144.4,1.95201319]
[1768203900667,1.41297699,3145.8,3144.4,1.95201319]
[1768203900870,0.95667865,3145.7,3144.4,1.95201319]
[1768203901070,0.95667865,3145.6,3144.4,1.95201319]
[1768203901370,0.95667865,3145.5,3144.4,1.95498736]
[1768203901571,0.95667865,3145.4,3144.4,1.95498736]
[1768203901874,0.95667865,3145.3,3144.4,1.95498736]
[1768203902074,0.00290005,3145.6,3144.4,1.95498736]
[1768203902371,0.95629817,3145.5,3144.4,1.95498736]
[1768203902565,0.95629817,3145.4,3144.4,1.95498736]
[1768203902770,0.95629817,3145.3,3144.4,1.95498736]
[1768203902974,0.00290005,3145.6,3144.4,1.95498736]
[1768203903275,0.9559917,3145.5,3144.4,1.95498736]
[1768203903473,0.9559917,3145.4,3144.4,1.95498736]
[1768203903675,0.9559917,3145.3,3144.4,1.95498736]
[1768203903973,0.00290005,3145.6,3144.4,1.95498736]
[1768203904173,0.95577426,3145.5,3144.4,1.95498736]
[1768203904369,0.95577426,3145.4,3144.4,1.95498736]
[1768203904571,0.00290005,3145.6,3144.4,1.95498736]
[1768203904772,0.95089154,3145.5,3144.4,1.95498736]
[1768203904971,0.95089154,3145.4,3144.4,1.95498736]
[1768203905174,0.00290005,3145.6,3144.4,1.95498736]
[1768203905372,0.95082605,3145.5,3144.4,1.95498736]
[1768203905583,0.95082605,3145.4,3144.4,1.95498736]
[1768203905784,0.00290005,3145.6,3144.4,1.95498736]
[1768203905989,0.95077169,3145.5,3144.4,1.95498736]
[1768203906283,0.95077169,3145.4,3144.4,1.95498736]
[1768203906579,0.00290005,3145.6,3144.4,1.95498736]
[1768203906779,0.95070262,3145.5,3144.4,1.95498736]
[1768203906981,0.95070262,3145.4,3144.4,1.95498736]
[1768203907177,0.00290005,3145.6,3144.4,1.95498736]
[1768203907377,0.95076002,3145.5,3144.4,1.95498736]
[1768203907573,0.95076002,3145.4,3144.4,1.95498736]
[1768203907769,0.00290005,3145.6,3144.4,1.95498736]
[1768203907976,0.95074182,3145.5,3144.4,0.00297417]
[1768203908178,0.95074182,3145.4,3144.4,0.00297417]
[1768203908378,0.00290005,3145.6,3144.4,0.00297417]
[1768203908680,0.95098979,3145.5,3144.4,0.00297417]
[1768203908876,0.95098979,3145.4,3144.4,0.00297417]
[1768203909074,0.00290005,3145.6,3144.4,0.00297417]
[1768203909275,0.95099047,3145.5,3144.4,0.00297417]
[1768203909473,0.95099047,3145.4,3144.4,0.00297417]
[1768203909675,0.95099047,3145.3,3144.4,0.00297417]
[1768203909877,0.00290005,3145.6,3144.4,0.00297417]
[1768203910077,0.95129953,3145.5,3144.4,0.00297417]
[1768203910275,0.95129953,3145.4,3144.4,0.00297417]
[1768203910480,0.95129953,3145.3,3144.4,0.00297417]
[1768203910777,0.00290005,3145.6,3144.4,0.00297417]
[1768203910778,1.21700172,3145.4,3144.4,0.00297417]
[1768203910984,1.21700172,3145.0,3143.6,2.15695191]
[1768203911184,0.95150743,3144.9,3143.6,2.15695191]
[1768203911384,0.95150743,3144.8,3143.6,2.15695191]
[1768203911685,0.95150743,3144.7,3143.6,2.15695191]
[1768203911870,0.95150743,3144.6,3143.6,0.00341577]
[1768203912074,1.21700172,3145.0,3143.6,0.00341577]
[1768203912280,0.95192545,3144.9,3143.6,0.00341577]
[1768203912584,0.95192545,3144.8,3143.6,0.00341577]
[1768203912878,0.95192545,3144.7,3143.6,2.16036768]
[1768203913086,0.95192545,3144.6,3143.6,2.16036768]
[1768203913281,0.95192545,3144.5,3143.6,2.16036768]
[1768203913486,0.95192545,3144.4,3143.6,2.16036768]
[1768203913673,2.12310016,3145.1,3143.6,2.16036768]
[1768203913879,1.40931162,3145.0,3143.6,2.16036768]
[1768203914079,1.40931162,3144.9,3143.6,2.16036768]
[1768203914280,0.95274389,3144.8,3143.6,2.16036768]
[1768203914480,0.95274389,3144.7,3143.6,2.16036768]
[1768203914680,0.95274389,3144.6,3143.6,2.16036768]
[1768203914984,0.95274389,3144.5,3143.6,2.16036768]
[1768203915182,0.95341257,3144.4,3143.6,2.16036768]
[1768203915385,2.25883544,3145.2,3143.6,2.16036768]
[1768203915583,0.45723854,3145.1,3143.6,2.16036768]
[1768203915784,1.41139109,3145.0,3143.6,2.16036768]
[1768203915989,1.41139109,3144.9,3143.6,2.16036768]
[1768203916177,0.95415255,3144.8,3143.6,2.16036768]
[1768203916382,1.41189829,3144.7,3143.6,2.16036768]
[1768203916584,0.95415255,3144.6,3143.6,2.16036768]
[1768203916780,0.95415255,3144.5,3143.6,2.16036768]
[1768203916980,0.95415255,3144.4,3143.6,2.16036768]
[1768203917181,0.95415255,3144.3,3143.6,2.16036768]
[1768203917385,0.95415255,3144.2,3143.6,2.16036768]
[1768203917586,2.25883544,3145.0,3143.6,2.16036768]
[1768203917793,0.45826819,3144.9,3143.6,2.16036768]
[1768203917991,1.41454219,3144.8,3143.6,2.16036768]
[1768203918191,1.41454219,3144.7,3143.6,2.16036768]
[1768203918493,2.25883544,3145.0,3143.6,2.16036768]
[1768203918494,1.41454219,3144.6,3143.6,2.16036768]
[1768203918683,0.956274,3144.5,3143.6,2.16036768]
[1768203918884,0.956274,3144.4,3143.6,2.16036768]
[1768203919090,0.956274,3144.3,3143.6,2.16036768]
[1768203919284,0.956274,3144.2,3143.6,2.16036768]
[1768203919480,0.956274,3144.1,3143.6,2.16036768]
[1768203919685,2.25883544,3145.0,3143.6,2.16036768]
[1768203919890,3.67364018,3144.9,3143.6,2.16036768]
[1768203920096,1.41480474,3144.8,3143.6,2.16036768]
[1768203920296,1.41480474,3144.7,3143.6,2.16036768]
[1768203920497,1.41480474,3144.6,3143.6,2.16036768]
[1768203920698,0.95644837,3144.5,3143.6,2.16036768]
[1768203921000,0.95644837,3144.4,3143.6,2.16036768]
[1768203921302,0.95644837,3144.3,3143.6,2.16036768]
[1768203921495,0.95644837,3144.2,3143.6,2.16036768]
[1768203921800,0.95644837,3144.1,3143.6,2.16036768]
[1768203921996,2.25883544,3144.9,3143.6,2.16036768]
[1768203922199,0.45831051,3144.8,3143.6,2.16036768]
[1768203922391,1.41465075,3144.7,3143.6,2.16036768]
[1768203922592,1.41465075,3144.6,3143.6,2.16036768]
[1768203922799,0.95634024,3144.5,3143.6,2.16036768]
[1768203923099,0.95634024,3144.4,3143.6,2.16036768]
[1768203923296,0.95634024,3144.3,3143.6,2.16036768]
[1768203923491,0.95634024,3144.2,3143.6,2.16036768]
[1768203923692,0.95634024,3144.1,3143.6,2.16036768]
[1768203923893,2.25883544,3144.9,3143.6,2.16036768]
[1768203924093,0.45815145,3144.8,3143.6,2.16036768]
[1768203924391,1.41416115,3144.7,3143.6,2.16036768]
[1768203924594,1.41416115,3144.6,3143.6,2.16036768]
[1768203924791,0.9560097,3144.5,3143.6,2.16036768]
[1768203924988,0.9560097,3144.4,3143.6,2.16036768]
[1768203925188,0.9560097,3144.3,3143.6,2.16036768]
[1768203925397,0.9560097,3144.2,3143.2,2.15695191]
[1768203925601,0.9560097,3144.1,3143.2,2.15695191]
[1768203925792,0.9560097,3144.0,3143.2,2.15695191]
[1768203925992,0.9560097,3143.9,3143.2,2.15695191]
[1768203926193,1.21700172,3144.7,3143.2,2.15695191]
[1768203926492,1.41369399,3144.6,3143.2,2.16058421]
[1768203926693,1.41369399,3144.5,3143.2,2.16058421]
[1768203926892,1.41369399,3144.4,3143.2,2.16058421]
[1768203927097,0.95570039,3144.3,3143.2,2.16058421]
[1768203927293,0.95570039,3144.2,3143.3,1.21641473]
[1768203927497,0.95570039,3144.1,3143.3,1.21641473]
[1768203927697,0.95570039,3144.0,3143.3,1.21641473]
[1768203927902,0.95570039,3143.9,3143.3,1.21641473]
[1768203928098,1.21641473,3144.7,3143.3,1.21641473]
[1768203928401,1.41028059,3144.6,3143.3,1.21641473]
[1768203928603,1.41028059,3144.5,3143.2,2.16058421]
[1768203928803,1.41028059,3144.4,3143.2,3.37699894]
[1768203929102,0.95545027,3144.3,3143.2,3.37699894]
[1768203929301,0.95545027,3144.2,3143.2,3.37699894]
[1768203929502,0.95545027,3144.1,3143.2,3.37699894]
[1768203929705,0.95545027,3144.0,3143.2,3.37699894]
[1768203929900,0.95545027,3143.9,3143.2,3.37699894]
[1768203930100,1.21641473,3144.5,3143.2,3.37699894]
[1768203930400,1.40996582,3144.4,3143.2,3.37699894]
[1768203930598,0.95526057,3144.3,3143.2,3.37699894]
[1768203930801,0.95526057,3144.2,3143.2,3.37699894]
[1768203931000,0.95526057,3144.1,3143.2,3.37699894]
[1768203931201,0.95526057,3144.0,3143.2,3.37699894]
[1768203931405,0.95526057,3143.9,3143.2,3.37699894]
[1768203931603,1.21641473,3144.6,3143.2,3.37699894]
[1768203931797,1.41001982,3144.5,3143.2,3.37699894]
[1768203931999,2.62643455,3144.4,3143.2,3.37699894]
[1768203932304,0.95529872,3144.3,3143.2,3.37699894]
[1768203934509,0.95529872,3144.2,3143.2,3.37699894]
[1768203934705,0.95529872,3144.1,3143.2,3.37699894]
[1768203934902,0.95529872,3144.0,3143.2,3.37699894]
[1768203935103,0.95529872,3143.9,3143.2,3.37699894]
[1768203935304,0.95540826,3143.8,3143.2,3.37699894]
[1768203935503,1.21641473,3144.5,3143.2,3.37699894]
[1768203935704,1.41028795,3144.4,3143.2,3.37699894]
[1768203936010,1.41028795,3144.3,3143.2,3.37699894]
[1768203936201,0.95540867,3144.2,3143.2,3.37699894]
[1768203936402,0.95540867,3144.1,3143.2,3.37699894]
[1768203936606,0.95540867,3144.0,3143.2,3.37699894]
[1768203936909,0.95540867,3143.9,3143.2,3.37699894]
[1768203937108,0.95540867,3143.8,3143.2,3.37699894]
[1768203937304,2.25883544,3144.6,3143.2,3.37699894]
[1768203937607,1.6714987,3144.5,3143.2,3.37699894]
[1768203937799,1.4109227,3144.4,3143.2,3.37699894]
[1768203938002,1.4109227,3144.3,3143.2,3.37699894]
[1768203938204,1.4109227,3144.2,3143.2,3.37699894]
[1768203938504,1.41102477,3144.1,3142.9,1.21641473]
[1768203938713,1.41102477,3144.0,3142.9,3.43825648]
[1768203938904,1.41102477,3143.9,3142.9,3.43825648]
[1768203939104,0.95583873,3143.8,3142.9,3.43825648]
[1768203939408,0.95583873,3143.7,3142.9,3.44097817]
[1768203939603,0.95583873,3143.6,3142.9,3.44097817]
[1768203939804,0.95583873,3143.5,3142.9,3.44097817]
[1768203940006,0.95583873,3143.4,3143.0,2.22184175]
[1768203940211,3.47525017,3144.2,3143.0,2.22184175]
[1768203940412,1.41086053,3144.1,3143.0,2.22184175]
[1768203940712,2.29328467,3143.9,3142.9,1.21913642]
[1768203940917,0.15928,3143.1,3140.5,6.384]
[1768203941214,1.21641473,3142.2,3140.2,0.25943]
[1768203941412,1.21641473,3142.5,3140.2,0.25943]
[1768203941606,1.39117626,3142.4,3140.3,3.185]
[1768203941914,1.39117626,3142.3,3140.3,3.185]
[1768203942212,1.39117626,3142.3,3140.2,0.25943]
[1768203942213,0.93939766,3142.2,3141.6,1.04807195]
[1768203944309,2.15581239,3142.2,3141.6,1.04807195]
[1768203944514,0.93939766,3142.1,3141.6,1.04807195]
[1768203944714,0.93939766,3142.0,3141.0,2.22184175]
[1768203944909,1.21641473,3141.8,3141.0,2.22184175]
[1768203945111,1.21641473,3142.0,3141.0,2.22184175]
[1768203945308,0.93512946,3141.9,3141.0,2.22184175]
[1768203945512,0.0025691,3142.3,3141.2,2.22184175]
[1768203945716,0.9351225,3142.2,3141.2,2.22184175]
[1768203946017,0.9351225,3142.1,3141.2,2.22496454]
[1768203946211,0.9351225,3142.0,3141.2,2.22496454]
[1768203946411,0.9351225,3141.9,3141.2,2.22496454]
[1768203946608,1.21641473,3142.0,3141.2,2.22496454]
[1768203946809,0.93443026,3141.9,3141.2,2.22496454]
[1768203947009,0.0025691,3142.3,3141.2,2.22496454]
[1768203947203,0.9344278,3142.2,3141.2,3.44137927]
[1768203947409,0.0025691,3142.3,3141.2,3.44137927]
[1768203947410,0.9344278,3142.1,3141.7,2.22184175]
[1768203947608,1.21641473,3143.2,3141.9,2.22184175]
[1768203947914,0.44923051,3143.1,3141.9,2.22184175]
[1768203948117,1.21641473,3143.0,3141.9,2.22184175]
[1768203948310,1.21641473,3142.8,3141.9,2.22184175]
[1768203948510,0.00264128,3142.8,3141.9,2.22184175]
[1768203949710,1.21641473,3143.5,3142.1,2.22184175]
[1768203950113,1.324,3143.8,3142.1,2.22184175]
[1768203950114,1.21641473,3143.4,3142.1,2.22184175]
[1768203950313,1.324,3143.8,3142.1,2.22184175]
[1768203950615,1.21641473,3143.4,3142.1,2.22184175]
[1768203950813,1.21891248,3143.4,3142.1,2.22184175]
[1768203951012,0.00249775,3143.4,3142.1,2.22184175]
[1768203951413,0.00249775,3143.4,3142.3,2.22184175]
[1768203951613,0.00249775,3143.4,3142.5,2.22184175]
[1768203954420,1.21891248,3143.4,3142.5,2.22184175]
[1768203955218,0.00249775,3143.4,3142.5,2.22184175]
[1768203955623,1.21891248,3143.4,3142.5,2.22184175]
[1768203956124,0.00249775,3143.4,3142.5,2.22184175]
[1768203957124,1.21891248,3143.4,3142.5,2.22184175]
[1768203957921,0.00249775,3143.4,3142.5,2.22184175]
[1768203959030,1.21891248,3143.4,3142.5,2.22184175]
[1768203959727,1.21641473,3142.9,3142.0,2.22184175]
[1768203960230,1.21641473,3142.3,3141.3,2.22184175]
[1768203960429,1.21641473,3142.5,3141.3,2.22184175]
[1768203960627,0.94409407,3142.4,3141.3,2.22184175]
[1768203960832,1.21641473,3142.3,3141.3,2.22184175]
[1768203961029,1.21641473,3142.1,3141.3,2.22184175]
[1768203961331,0.94421366,3142.0,3141.3,2.22184175]
[1768203961522,0.94418453,3141.9,3141.3,2.22184175]
[1768203961828,2.25883544,3142.7,3141.3,2.22184175]
[1768203962130,1.39424751,3142.6,3141.3,2.22184175]
[1768203962329,1.39424751,3142.5,3141.3,2.22184175]
[1768203962517,0.94418721,3142.4,3141.3,2.22184175]
[1768203962721,0.94418721,3142.3,3141.3,2.22184175]
[1768203963030,0.94418721,3142.2,3141.3,2.22184175]
[1768203963224,0.94418721,3142.1,3141.3,2.22184175]
[1768203963428,0.94418721,3142.0,3141.3,2.22184175]
[1768203963627,0.94418721,3141.9,3141.3,2.22184175]
[1768203963931,0.94418721,3141.8,3141.3,2.22184175]
[1768203964132,0.97799043,3141.7,3141.3,2.22184175]